fUSD/lending_fUSD_20250107
["ID","MTS","AMOUNT","RATE_DAILY","PERIOD"]
[348049109,1736280642248,-500.0,9.798e-05,2]
[348049110,1736280642258,-500.0,9.798e-05,2]
[348049111,1736280642269,-500.0,9.798e-05,2]
[348049112,1736280642278,-681.41,9.798e-05,2]
[348049113,1736280642287,-500.0,9.798e-05,2]
[348049114,1736280642297,-500.0,9.798e-05,2]
[348049115,1736280642307,-500.0,9.798e-05,2]
[348049116,1736280642316,-500.0,9.798e-05,2]
[348049117,1736280642326,-500.0,9.798e-05,2]
[348049118,1736280642335,-500.0,9.798e-05,2]
[348049119,1736280642344,-1300.79,9.798e-05,2]
[348049120,1736280642354,-500.0,9.798e-05,2]
[348049121,1736280642363,-500.0,9.798e-05,2]
[348049122,1736280642373,-500.0,9.798e-05,2]
[348049123,1736280642382,-813.95,9.798e-05,2]
[348049125,1736280642392,-500.0,9.798e-05,2]
[348049126,1736280642401,-500.0,9.798e-05,2]
[348049128,1736280642411,-508.35,9.798e-05,2]
[348049130,1736280642420,-500.0,9.798e-05,2]
[348049132,1736280642431,-500.0,9.798e-05,2]
[348049133,1736280642441,-500.0,9.798e-05,2]
[348049134,1736280642450,-500.0,9.798e-05,2]
[348049135,1736280642461,-1151.67,9.798e-05,2]
[348049136,1736280642475,-500.0,9.798e-05,2]
[348049138,1736280642485,-500.0,9.798e-05,2]
[348049139,1736280642494,-500.0,9.798e-05,2]
[348049140,1736280642504,-500.0,9.798e-05,2]
[348049141,1736280642516,-500.0,9.798e-05,2]
[348049142,1736280642526,-1203.02,9.798e-05,2]
[348049143,1736280642535,-500.0,9.798e-05,2]
[348049144,1736280642548,-500.0,9.798e-05,2]
[348049145,1736280642558,-500.0,9.798e-05,2]
[348049146,1736280642567,-500.0,9.798e-05,2]
[348049147,1736280642576,-500.0,9.798e-05,2]
[348049148,1736280642586,-500.0,9.798e-05,2]
[348049149,1736280642594,-500.0,9.798e-05,2]
[348049150,1736280642604,-500.0,9.798e-05,2]
[348049151,1736280642614,-500.0,9.798e-05,2]
[348049152,1736280642623,-537.39,9.798e-05,2]
[348049154,1736280642633,-500.0,9.798e-05,2]
[348049155,1736280642642,-500.0,9.798e-05,2]
[348049158,1736280642652,-500.0,9.798e-05,2]
[348049159,1736280642661,-500.0,9.798e-05,2]
[348049160,1736280642670,-500.0,9.798e-05,2]
[348049161,1736280642679,-500.0,9.798e-05,2]
[348049162,1736280642688,-763.5,9.798e-05,2]
[348049163,1736280642696,-500.0,9.798e-05,2]
[348049164,1736280642705,-500.0,9.798e-05,2]
[348049165,1736280642714,-500.0,9.798e-05,2]
[348049166,1736280642723,-500.0,9.798e-05,2]
[348049167,1736280642732,-500.0,9.798e-05,2]
[348049168,1736280642741,-894.41,9.798e-05,2]
[348049169,1736280642750,-500.0,9.798e-05,2]
[348049170,1736280642760,-500.0,9.798e-05,2]
[348049171,1736280642771,-500.0,9.798e-05,2]
[348049172,1736280642780,-500.0,9.798e-05,2]
[348049173,1736280642790,-500.0,9.798e-05,2]
[348049174,1736280642799,-500.0,9.798e-05,2]
[348049175,1736280642808,-500.0,9.798e-05,2]
[348049176,1736280642817,-500.0,9.798e-05,2]
[348049177,1736280642826,-500.0,9.798e-05,2]
[348049178,1736280642835,-500.0,9.798e-05,2]
[348049179,1736280642845,-743.21,9.798e-05,2]
[348049180,1736280642854,-500.0,9.798e-05,2]
[348049181,1736280642863,-500.0,9.798e-05,2]
[348049182,1736280642872,-555.68,9.798e-05,2]
[348049183,1736280642881,-500.0,9.798e-05,2]
[348049184,1736280642890,-500.0,9.798e-05,2]
[348049185,1736280642899,-500.0,9.798e-05,2]
[348049186,1736280642908,-500.0,9.798e-05,2]
[348049187,1736280642917,-500.0,9.798e-05,2]
[348049188,1736280642926,-859.36,9.798e-05,2]
[348049189,1736280642937,-908.9,9.798e-05,2]
[348049190,1736280642946,-500.0,9.798e-05,2]
[348049191,1736280642955,-500.0,9.798e-05,2]
[348049192,1736280642964,-500.0,9.798e-05,2]
[348049194,1736280642973,-500.0,9.798e-05,2]
[348049196,1736280642982,-500.0,9.798e-05,2]
[348049198,1736280642991,-500.0,9.798e-05,2]
[348049200,1736280643000,-500.0,9.798e-05,2]
[348049201,1736280643009,-500.0,9.798e-05,2]
[348049202,1736280643022,-500.0,9.798e-05,2]
[348049204,1736280643032,-500.0,9.798e-05,2]
[348049206,1736280643042,-500.0,9.798e-05,2]
[348049208,1736280643051,-508.27487985,9.798e-05,2]
[348049210,1736280643061,-500.0,9.798e-05,2]
[348049212,1736280643071,-500.0,9.798e-05,2]
[348049213,1736280643081,-500.0,9.798e-05,2]
[348049214,1736280643090,-500.0,9.798e-05,2]
[348049215,1736280643099,-500.0,9.798e-05,2]
[348049216,1736280643108,-500.0,9.798e-05,2]
[348049217,1736280643117,-500.0,9.798e-05,2]
[348049218,1736280643126,-500.0,9.798e-05,2]
[348049219,1736280643135,-500.0,9.798e-05,2]
[348049220,1736280643144,-500.0,9.798e-05,2]
[348049221,1736280643153,-500.0,9.798e-05,2]
[348049222,1736280643162,-633.08,9.798e-05,2]
[348049223,1736280643172,-500.0,9.798e-05,2]
[348049224,1736280643181,-500.0,9.798e-05,2]
[348049225,1736280643190,-500.0,9.798e-05,2]
[348049226,1736280643199,-500.0,9.798e-05,2]
[348049227,1736280643208,-500.0,9.798e-05,2]
[348049229,1736280643217,-500.0,9.798e-05,2]
[348049230,1736280643226,-500.0,9.798e-05,2]
[348049232,1736280643234,-500.0,9.798e-05,2]
[348049234,1736280643243,-500.0,9.798e-05,2]
[348049236,1736280643253,-500.0,9.798e-05,2]
[348049237,1736280643262,-500.0,9.798e-05,2]
[348049238,1736280643275,-500.0,9.798e-05,2]
[348049239,1736280643285,-500.0,9.798e-05,2]
[348049240,1736280643296,-500.0,9.798e-05,2]
[348049241,1736280643305,-500.0,9.798e-05,2]
[348049242,1736280643316,-500.0,9.798e-05,2]
[348049243,1736280643325,-585.15,9.798e-05,2]
[348049244,1736280643335,-687.45,9.798e-05,2]
[348049245,1736280643344,-500.0,9.798e-05,2]
[348049246,1736280643353,-500.0,9.798e-05,2]
[348049247,1736280643363,-500.0,9.798e-05,2]
[348049248,1736280643372,-500.0,9.798e-05,2]
[348049249,1736280643382,-500.0,9.798e-05,2]
[348049250,1736280643391,-500.0,9.798e-05,2]
[348049251,1736280643400,-500.0,9.798e-05,2]
[348049252,1736280643410,-1137.93,9.798e-05,2]
[348049253,1736280643419,-500.0,9.798e-05,2]
[348049254,1736280643430,-500.0,9.798e-05,2]
[348049255,1736280643439,-500.0,9.798e-05,2]
[348049256,1736280643449,-500.0,9.798e-05,2]
[348049257,1736280643459,-500.0,9.798e-05,2]
[348049258,1736280643472,-500.0,9.798e-05,2]
[348049259,1736280643482,-500.0,9.798e-05,2]
[348049260,1736280643491,-500.0,9.798e-05,2]
[348049261,1736280643500,-500.0,9.798e-05,2]
[348049262,1736280643509,-500.0,9.798e-05,2]
[348049263,1736280643520,-500.0,9.798e-05,2]
[348049264,1736280643529,-500.0,9.798e-05,2]
[348049265,1736280643539,-500.0,9.798e-05,2]
[348049266,1736280643548,-626.52102783,9.798e-05,2]
[348049267,1736280643558,-500.0,9.798e-05,2]
[348049268,1736280643567,-1243.7,9.798e-05,2]
[348049269,1736280643576,-835.19,9.798e-05,2]
[348049270,1736280643585,-500.0,9.798e-05,2]
[348049271,1736280643594,-500.0,9.798e-05,2]
[348049272,1736280643604,-500.0,9.798e-05,2]
[348049273,1736280643613,-500.0,9.798e-05,2]
[348049274,1736280643622,-535.63,9.798e-05,2]
[348049275,1736280643632,-500.0,9.798e-05,2]
[348049276,1736280643641,-500.0,9.798e-05,2]
[348049277,1736280643651,-500.0,9.798e-05,2]
[348049278,1736280643660,-500.0,9.798e-05,2]
[348049279,1736280643669,-1695.324378,9.798e-05,2]
[348049280,1736280643678,-500.0,9.798e-05,2]
[348049281,1736280643687,-500.0,9.798e-05,2]
[348049282,1736280643697,-652.61,9.798e-05,2]
[348049283,1736280643706,-500.0,9.798e-05,2]
[348049284,1736280643715,-500.0,9.798e-05,2]
[348049285,1736280643724,-500.0,9.798e-05,2]
[348049286,1736280643733,-500.0,9.798e-05,2]
[348049287,1736280643742,-500.0,9.798e-05,2]
[348049288,1736280643905,-500.0,9.798e-05,2]
[348049289,1736280643915,-500.0,9.798e-05,2]
[348049290,1736280643924,-500.0,9.798e-05,2]
[348049291,1736280643934,-500.0,9.798e-05,2]
[348049292,1736280643943,-778.68,9.798e-05,2]
[348049293,1736280643952,-500.0,9.798e-05,2]
[348049294,1736280643961,-500.0,9.798e-05,2]
[348049295,1736280643970,-579.07,9.798e-05,2]
[348049296,1736280643979,-500.0,9.798e-05,2]
[348049297,1736280643989,-500.0,9.798e-05,2]
[348049298,1736280643998,-742.01,9.798e-05,2]
[348049299,1736280644007,-564.67,9.798e-05,2]
[348049300,1736280644018,-842.06,9.798e-05,2]
[348049301,1736280644027,-500.0,9.798e-05,2]
[348049302,1736280644037,-613.25972953,9.798e-05,2]
[348049303,1736280644046,-500.0,9.798e-05,2]
[348049304,1736280644055,-500.0,9.798e-05,2]
[348049305,1736280644064,-500.0,9.798e-05,2]
[348049306,1736280644074,-500.0,9.798e-05,2]
[348049307,1736280644083,-500.0,9.798e-05,2]
[348049308,1736280644092,-656.4,9.798e-05,2]
[348049309,1736280644101,-500.0,9.798e-05,2]
[348049310,1736280644110,-500.0,9.798e-05,2]
[348049311,1736280644119,-500.0,9.798e-05,2]
[348049312,1736280644128,-586.79,9.798e-05,2]
[348049313,1736280644137,-500.0,9.798e-05,2]
[348049314,1736280644147,-500.0,9.798e-05,2]
[348049315,1736280644156,-150.0,9.798e-05,2]
[348049316,1736280644164,-500.0,9.798e-05,2]
[348049317,1736280644173,-500.0,9.798e-05,2]
[348049318,1736280644183,-500.0,9.798e-05,2]
[348049319,1736280644192,-500.0,9.798e-05,2]
[348049320,1736280644201,-500.0,9.798e-05,2]
[348049321,1736280644210,-500.0,9.798e-05,2]
[348049322,1736280644219,-500.0,9.798e-05,2]
[348049323,1736280644228,-500.0,9.798e-05,2]
[348049324,1736280644237,-500.0,9.798e-05,2]
[348049325,1736280644247,-500.0,9.798e-05,2]
[348049326,1736280644256,-500.0,9.798e-05,2]
[348049327,1736280644266,-500.0,9.798e-05,2]
[348049328,1736280644276,-500.0,9.798e-05,2]
[348049329,1736280644287,-500.0,9.798e-05,2]
[348049330,1736280644296,-536.25,9.798e-05,2]
[348049331,1736280644307,-623.39,9.798e-05,2]
[348049332,1736280644316,-500.0,9.798e-05,2]
[348049333,1736280644326,-500.0,9.798e-05,2]
[348049334,1736280644335,-500.0,9.798e-05,2]
[348049335,1736280644344,-500.0,9.798e-05,2]
[348049336,1736280644354,-500.0,9.798e-05,2]
[348049337,1736280644363,-500.0,9.798e-05,2]
[348049338,1736280644372,-587.33,9.798e-05,2]
[348049339,1736280644382,-500.0,9.798e-05,2]
[348049340,1736280644391,-500.0,9.798e-05,2]
[348049341,1736280644400,-688.25,9.798e-05,2]
[348049342,1736280644409,-500.0,9.798e-05,2]
[348049343,1736280644419,-1712.7,9.798e-05,2]
[348049344,1736280644429,-500.0,9.798e-05,2]
[348049345,1736280644438,-1026.9,9.798e-05,2]
[348049346,1736280644448,-500.0,9.798e-05,2]
[348049347,1736280644457,-500.0,9.798e-05,2]
[348049348,1736280644469,-500.0,9.798e-05,2]
[348049349,1736280644479,-1202.23,9.798e-05,2]
[348049350,1736280644488,-500.0,9.798e-05,2]
[348049351,1736280644498,-500.0,9.798e-05,2]
[348049352,1736280644508,-500.0,9.798e-05,2]
[348049353,1736280644519,-500.0,9.798e-05,2]
[348049354,1736280644531,-500.0,9.798e-05,2]
[348049355,1736280644540,-500.0,9.798e-05,2]
[348049356,1736280644550,-500.0,9.798e-05,2]
[348049357,1736280644561,-586.97,9.798e-05,2]
[348049358,1736280644570,-500.0,9.798e-05,2]
[348049359,1736280644580,-517.66,9.798e-05,2]
[348049360,1736280644591,-500.0,9.798e-05,2]
[348049361,1736280644600,-500.0,9.798e-05,2]
[348049362,1736280644610,-644.16,9.798e-05,2]
[348049363,1736280644619,-500.0,9.798e-05,2]
[348049364,1736280644629,-324.22466229,9.798e-05,2]
[348049365,1736280644639,-500.0,9.798e-05,2]
[348049366,1736280644648,-500.0,9.798e-05,2]
[348049367,1736280644658,-1760.05,9.798e-05,2]
[348049368,1736280644668,-500.0,9.798e-05,2]
[348049369,1736280644678,-575.11,9.798e-05,2]
[348049370,1736280644688,-500.0,9.798e-05,2]
[348049371,1736280644697,-1396.13,9.798e-05,2]
[348049372,1736280644706,-1395.34,9.798e-05,2]
[348049373,1736280644716,-1138.4,9.798e-05,2]
[348049374,1736280644725,-1436.59,9.798e-05,2]
[348049375,1736280644735,-1139.89,9.798e-05,2]
[348049376,1736280644744,-797.15,9.798e-05,2]
[348049377,1736280644754,-500.0,9.798e-05,2]
[348049378,1736280644764,-500.0,9.798e-05,2]
[348049379,1736280644778,-5655.0,9.799e-05,2]
[348049380,1736280644787,-500.0,9.799e-05,2]
[348049381,1736280644796,-1386.13,9.799e-05,2]
[348049382,1736280644806,-1531.09,9.799e-05,2]
[348049383,1736280644815,-2517.42,9.799e-05,2]
[348049384,1736280644824,-2141.92,9.799e-05,2]
[348049385,1736280644835,-2869.82,9.799e-05,2]
[348049386,1736280644844,-1733.11,9.799e-05,2]
[348049387,1736280644853,-5384.06,9.799e-05,2]
[348049388,1736280644863,-2638.81,9.799e-05,2]
[348049389,1736280644873,-2275.62,9.799e-05,2]
[348049390,1736280644883,-2326.18,9.799e-05,2]
[348049391,1736280644893,-500.0,9.799e-05,2]
[348049392,1736280644903,-1860.0,9.799e-05,2]
[348049393,1736280644912,-4302.36,9.799e-05,2]
[348049394,1736280644922,-1442.11,9.799e-05,2]
[348049395,1736280644931,-1822.1,9.799e-05,2]
[348049396,1736280644941,-1901.23,9.799e-05,2]
[348049397,1736280644951,-788.76,9.799e-05,2]
[348049398,1736280644961,-1890.66,9.799e-05,2]
[348049399,1736280644971,-1348.24,9.799e-05,2]
[348049400,1736280644981,-1457.96,9.799e-05,2]
[348049401,1736280644991,-1060.31,9.799e-05,2]
[348049402,1736280645000,-2030.93,9.799e-05,2]
[348049403,1736280645010,-2162.14,9.799e-05,2]
[348049404,1736280645021,-2224.83,9.799e-05,2]
[348049405,1736280645030,-11247.36935842,9.8e-05,2]
[348049406,1736280645040,-733.31,9.805e-05,2]
[348049407,1736280645050,-300.46,9.836e-05,2]
[348049408,1736280645059,-268.74408465,9.864e-05,2]
[348049409,1736280645070,-1359.75,9.899e-05,2]
[348049410,1736280645079,-31037.5728,9.9e-05,2]
[348049411,1736280645089,-3850.3344,9.9e-05,2]
[348049412,1736280645099,-47046.3549,9.9e-05,2]
[348049413,1736280645110,-500.0,9.9e-05,2]
[348049414,1736280645120,-1000.0,9.9e-05,2]
[348049415,1736280645130,-1000.0,9.936e-05,2]
[348049416,1736280645139,-500.0,9.971e-05,2]
[348049417,1736280645150,-500.0,9.971e-05,2]
[348049418,1736280645159,-500.0,9.971e-05,2]
[348049419,1736280645169,-500.0,9.971e-05,2]
[348049420,1736280645178,-579.45,9.971e-05,2]
[348049421,1736280645188,-500.0,9.971e-05,2]
[348049422,1736280645197,-500.0,9.971e-05,2]
[348049423,1736280645207,-500.0,9.971e-05,2]
[348049424,1736280645216,-845.88,9.971e-05,2]
[348049425,1736280645226,-566.76,9.971e-05,2]
[348049426,1736280645236,-500.0,9.971e-05,2]
[348049427,1736280645245,-500.0,9.971e-05,2]
[348049428,1736280645254,-500.0,9.971e-05,2]
[348049429,1736280645264,-500.0,9.971e-05,2]
[348049430,1736280645275,-500.0,9.971e-05,2]
[348049431,1736280645290,-701.48,9.971e-05,2]
[348049432,1736280645301,-560.5,9.971e-05,2]
[348049433,1736280645311,-500.0,9.971e-05,2]
[348049434,1736280645321,-1089.8,9.971e-05,2]
[348049435,1736280645332,-500.0,9.971e-05,2]
[348049436,1736280645343,-1207.31,9.971e-05,2]
[348049439,1736280645353,-819.49,9.971e-05,2]
[348049441,1736280645363,-722.33,9.971e-05,2]
[348049442,1736280645373,-1247.52,9.971e-05,2]
[348049443,1736280645383,-500.0,9.971e-05,2]
[348049444,1736280645393,-500.0,9.971e-05,2]
[348049445,1736280645404,-572.7,9.971e-05,2]
[348049446,1736280645414,-500.0,9.971e-05,2]
[348049447,1736280645424,-500.0,9.971e-05,2]
[348049448,1736280645434,-1564.36,9.971e-05,2]
[348049449,1736280645444,-648.75,9.971e-05,2]
[348049450,1736280645453,-1493.25,9.971e-05,2]
[348049452,1736280645464,-500.0,9.971e-05,2]
[348049454,1736280645478,-1393.87,9.971e-05,2]
[348049455,1736280645488,-500.0,9.971e-05,2]
[348049456,1736280645498,-635.66,9.971e-05,2]
[348049457,1736280645508,-500.0,9.971e-05,2]
[348049459,1736280645519,-500.0,9.971e-05,2]
[348049460,1736280645529,-1099.38,9.971e-05,2]
[348049461,1736280645540,-500.0,9.971e-05,2]
[348049462,1736280645552,-500.0,9.971e-05,2]
[348049464,1736280645563,-583.94,9.971e-05,2]
[348049465,1736280645573,-512.42,9.971e-05,2]
[348049467,1736280645584,-4507.95,9.972e-05,2]
[348049468,1736280645593,-9912.16,9.972e-05,2]
[348049469,1736280645603,-2209.92,9.972e-05,2]
[348049470,1736280645614,-1277.5,9.972e-05,2]
[348049471,1736280645623,-4402.0,9.973e-05,2]
[348049472,1736280645633,-151.80335575,9.973e-05,2]
[348049473,1736280645643,-152.04560464,9.973e-05,2]
[348049474,1736280645653,-500.0,9.973e-05,2]
[348049475,1736280645663,-2844.0,9.978e-05,4]
[348049476,1736280645673,-325.0,9.998e-05,2]
[348049477,1736280645682,-7931.469,9.998e-05,2]
[348049478,1736280645691,-1145.44,9.998e-05,2]
[348049479,1736280645700,-1849.66,9.998e-05,2]
[348049480,1736280645711,-1184.84,9.998e-05,2]
[348049481,1736280645720,-4081.01,9.998e-05,2]
[348049482,1736280645730,-511.22,9.999e-05,2]
[348049483,1736280645739,-1475.1,9.999e-05,2]
[348049484,1736280645747,-500.0,9.999e-05,2]
[348049485,1736280645757,-500.0,9.999e-05,2]
[348049486,1736280645766,-500.0,9.999e-05,2]
[348049487,1736280645778,-500.0,9.999e-05,2]
[348049488,1736280645788,-3630.99,9.999e-05,2]
[348049489,1736280645799,-575.82,9.999e-05,2]
[348049490,1736280645810,-1604.63,9.999e-05,2]
[348049491,1736280645819,-2053.92,9.999e-05,2]
[348049492,1736280645828,-3071.12,9.999e-05,2]
[348049493,1736280645838,-1376.99,9.999e-05,2]
[348049494,1736280645847,-1882.0,0.0001,2]
[348049495,1736280645857,-1077770.25743977,0.0001,2]
[348049496,1736280645879,-2413.92242448,0.0001,2]
[348049497,1736280645891,-582.27999921,0.0001,2]
[348049498,1736280645903,-633.004498,0.0001,2]
[348049499,1736280645944,-250813.76142597,0.0001,2]
[348049500,1736280645955,-6240.04898774,0.0001,2]
[348049501,1736280645967,-1090.68610449,0.0001,2]
[348049502,1736280645978,-462.28317244,0.0001,2]
[348049503,1736280645988,-14003.71133985,0.0001,2]
[348049504,1736280645999,-14935.85199795,0.0001,2]
[348049505,1736280646010,-372138.05033122,0.0001,2]
[348049506,1736280646027,-387.79444255,0.0001,2]
[348049507,1736280646038,-789.255,0.0001,2]
[348049508,1736280646051,-403.400028,0.0001,2]
[348049509,1736280646062,-7270.766872,0.0001,2]
[348049510,1736280646077,-344.1324579,0.0001,2]
[348049511,1736280646089,-675.88521312,0.0001,2]
[348049512,1736280646101,-1159.80054568,0.0001,2]
[348049513,1736280646112,-296.664,0.0001,2]
[348049514,1736280646124,-2106.74281368,0.0001,2]
[348049515,1736280646135,-1690.01709345,0.0001,2]
[348049516,1736280646391,-9964.95842124,0.0001,2]
[348049517,1736280646404,-4117.3371316,0.0001,2]
[348049518,1736280646415,-364.96708586,0.0001,2]
[348049519,1736280646427,-395.3193263,0.0001,2]
[348049520,1736280646446,-3151.84771964,0.0001,2]
[348049521,1736280646457,-5829.85985594,0.0001,2]
[348049522,1736280646471,-538.32008026,0.0001,2]
[348049523,1736280646483,-864.60574511,0.0001,2]
[348049524,1736280646500,-4871.95127021,0.0001,2]
[348049525,1736280646511,-7852.31260071,0.0001,2]
[348049526,1736280646535,-360.626445,0.0001,2]
[348049533,1736280647095,-500.0,9.798e-05,2]
[348049534,1736280647105,-16690.144282,0.0001,2]
[348049535,1736280647116,-3400.2,0.0001,2]
[348049536,1736280647128,-941.71307507,0.0001,2]
[348049537,1736280647139,-1163.41768572,0.0001,2]
[348049538,1736280647645,-358.979945,9.797e-05,2]
[348049539,1736280647657,-187.610055,9.797e-05,2]
[348049540,1736280647667,-7609.25048098,0.0001,2]
[348049541,1736280647686,-451.11234823,0.0001,2]
[348049542,1736280647697,-11235.888624,0.0001,2]
[348049543,1736280647731,-613.15,0.0001,2]
[348049544,1736280647742,-2280.0,0.0001,2]
[348049545,1736280647753,-1085.5,0.0001,2]
[348049546,1736280647764,-99103.62047517,0.0001,2]
[348049549,1736281535699,181.53,6.695e-05,2]
[348049552,1736281592691,151.73,0.00015616,80]
[348049553,1736281592944,151.73,0.00015616,119]
[348049555,1736281686727,-150.0,7.449e-05,2]
[348049571,1736281831801,-150.0,7.56e-05,2]
[348049572,1736281831811,-150.0,7.872e-05,2]
[348049573,1736281831821,-634.58435872,7.872e-05,2]
[348049574,1736281831831,-634.58435871,8.045e-05,2]
[348049575,1736281831841,-634.58435871,8.218e-05,2]
[348049576,1736281831855,-1560.33,8.219e-05,2]
[348049577,1736281831865,-300.0,8.228e-05,2]
[348049578,1736281831876,-17640.05858756,8.229e-05,2]
[348049579,1736281831886,-250.0,8.229e-05,2]
[348049580,1736281831896,-985.35,8.279e-05,2]
[348049581,1736281831906,-1000.0,8.337e-05,2]
[348049582,1736281831915,-775.78,8.403e-05,2]
[348049583,1736281831926,-150.0,8.408e-05,2]
[348049584,1736281831935,-150.0,8.419e-05,2]
[348049585,1736281831946,-186.33,8.444e-05,2]
[348049586,1736281831955,-207.73630972,8.662e-05,2]
[348049587,1736281831965,-629.10260947,8.72e-05,2]
[348049588,1736281831975,-629.10260946,8.721e-05,2]
[348049589,1736281831985,-7458.03,8.722e-05,2]
[348049590,1736281831994,-900.0,8.768e-05,2]
[348049591,1736281832005,-161.87,8.821e-05,2]
[348049592,1736281832014,-200.0,8.881e-05,2]
[348049593,1736281832024,-250.0,8.908e-05,2]
[348049594,1736281832033,-150.0,8.963e-05,2]
[348049595,1736281832043,-250.0,8.966e-05,2]
[348049596,1736281832052,-23900.0,8.966e-05,2]
[348049597,1736281832061,-207.73630972,8.986e-05,2]
[348049598,1736281832071,-861.62281341,8.986e-05,2]
[348049599,1736281832080,-150.0,9e-05,2]
[348049600,1736281832089,-150.0,9e-05,2]
[348049601,1736281832098,-150.0,9e-05,2]
[348049602,1736281832108,-150.0,9.038e-05,2]
[348049603,1736281832118,-240.0,9.051e-05,2]
[348049604,1736281832129,-166.55,9.08e-05,2]
[348049605,1736281832138,-150.0,9.091e-05,2]
[348049606,1736281832148,-150.0,9.182e-05,2]
[348049607,1736281832158,-164.12,9.19e-05,2]
[348049608,1736281832167,-150.0,9.251e-05,2]
[348049609,1736281832177,-150.0,9.273e-05,2]
[348049610,1736281832186,-150.0,9.333e-05,2]
[348049611,1736281832195,-150.0,9.333e-05,2]
[348049612,1736281832205,-150.0,9.363e-05,2]
[348049613,1736281832214,-150.0,9.364e-05,2]
[348049614,1736281832223,-1000.0,9.379e-05,2]
[348049615,1736281832233,-437.76,9.398e-05,2]
[348049616,1736281832242,-771.88,9.398e-05,2]
[348049617,1736281832252,-800.0,9.4e-05,3]
[348049618,1736281832261,-500.0,9.428e-05,2]
[348049619,1736281832270,-775.78,9.454e-05,2]
[348049620,1736281832280,-150.0,9.455e-05,2]
[348049621,1736281832289,-211.122,9.5e-05,2]
[348049622,1736281832299,-1600.0,9.5e-05,3]
[348049623,1736281832308,-150.0,9.504e-05,2]
[348049624,1736281832317,-150.0,9.514e-05,2]
[348049625,1736281832327,-799.46038091,9.514e-05,2]
[348049626,1736281832346,-339.2285,9.514e-05,2]
[348049627,1736281832358,-361.31111909,9.514e-05,2]
[348049628,1736281832368,-150.0,9.545e-05,2]
[348049629,1736281832379,-420.59,9.589e-05,2]
[348049630,1736281832389,-31.56138091,9.597e-05,2]
[348049631,1736281832400,-908.969996,9.597e-05,2]
[348049632,1736281832412,-429.87641914,9.597e-05,2]
[348049633,1736281832423,-663.17490395,9.597e-05,2]
[348049634,1736281832433,-2090.0295,9.597e-05,2]
[348049635,1736281832442,-333.10232628,9.597e-05,2]
[348049636,1736281835115,-199.92197372,9.597e-05,2]
[348049637,1736281835125,-6103.1518,9.597e-05,2]
[348049638,1736281835136,-851.6281,9.597e-05,2]
[348049639,1736281835146,-508.55,9.599e-05,2]
[348049640,1736281835155,-2400.0,9.6e-05,3]
[348049641,1736281835165,-1000.0,9.6e-05,2]
[348049642,1736281835175,-150.0,9.636e-05,2]
[348049643,1736281835185,-150.0,9.642e-05,2]
[348049644,1736281835195,-150.0,9.667e-05,2]
[348049645,1736281835205,-150.0,9.667e-05,2]
[348049646,1736281835214,-509.0,9.671e-05,2]
[348049647,1736281835224,-150.0,9.694e-05,2]
[348049648,1736281835236,-2539.72153309,9.695e-05,2]
[348049649,1736281835249,-2460.27846691,9.695e-05,2]
[348049650,1736281835261,-787.212,9.696e-05,2]
[348049651,1736281835270,-989.9002299,9.696e-05,2]
[348049652,1736281835282,-2921.3623319,9.696e-05,2]
[348049653,1736281835295,-7127.8754382,9.696e-05,2]
[348049654,1736281835304,-8301.3213,9.696e-05,2]
[348049655,1736281835314,-1000.0,9.697e-05,2]
[348049656,1736281835323,-14821.01479209,9.697e-05,2]
[348049657,1736281835338,-1976.1,9.697e-05,2]
[348049658,1736281835350,-556.26670477,9.697e-05,2]
[348049659,1736281835362,-809.55910396,9.697e-05,2]
[348049660,1736281835373,-525.00000005,9.697e-05,2]
[348049661,1736281835387,-1355.36960874,9.697e-05,2]
[348049662,1736281835398,-13058.43486891,9.697e-05,2]
[348049663,1736281835430,-357.355385,9.697e-05,2]